[Event "Live Chess"]
[Site "Chess.com"]
[Date "2024.06.02"]
[Round "-"]
[White "Duke_of_Bebington"]
[Black "jk0110"]
[Result "0-1"]
[WhiteElo "1617"]
[BlackElo "1236"]
[TimeControl "300"]
[EndTime "16:46:16 PDT"]
[Termination "jk0110 won by resignation"]

1. e4 {[%clk 0:04:57.9]} 1... e5 {[%clk 0:04:58.8]} 2. Nf3 {[%clk 0:04:57.2]}
2... Nc6 {[%clk 0:04:57.4]} 3. Bc4 {[%clk 0:04:55.9]} 3... f5 {[%clk 0:04:56.3]}
4. d3 {[%clk 0:04:46.3]} 4... Bc5 {[%clk 0:04:53]} 5. Ng5 {[%clk 0:04:34.2]}
5... f4 {[%clk 0:04:50.4]} 6. Nf7 {[%clk 0:04:27.3]} 6... Qh4 {[%clk 0:04:48.5]}
7. O-O {[%clk 0:04:21]} 7... Nf6 {[%clk 0:04:45.2]} 8. Nxh8 {[%clk 0:04:17.7]}
8... Ng4 {[%clk 0:04:43]} 9. h3 {[%clk 0:04:07]} 9... Nxf2 {[%clk 0:04:39.7]}
10. Rxf2 {[%clk 0:03:52.1]} 10... Bxf2+ {[%clk 0:04:25.1]} 11. Kh1 {[%clk
0:03:50.5]} 11... d5 {[%clk 0:04:14.9]} 12. Qf3 {[%clk 0:03:44.4]} 12... Bg3
{[%clk 0:04:06.6]} 13. c3 {[%clk 0:03:36.6]} 13... Bxh3 {[%clk 0:04:02.6]} 14.
Bxf4 {[%clk 0:03:17]} 14... Bg4+ {[%clk 0:03:56]} 15. Kg1 {[%clk 0:03:14.4]}
15... Bxf3 {[%clk 0:03:47.8]} 0-1

[Event "Live Chess"]
[Site "Chess.com"]
[Date "2024.06.02"]
[Round "-"]
[White "alicechristina"]
[Black "MaksymYurii"]
[Result "1-0"]
[WhiteElo "1924"]
[BlackElo "952"]
[TimeControl "300"]
[EndTime "16:46:29 PDT"]
[Termination "alicechristina won by checkmate"]

1. c4 {[%clk 0:04:57]} 1... d5 {[%clk 0:04:57.7]} 2. cxd5 {[%clk 0:04:45.1]}
2... Qxd5 {[%clk 0:04:56.4]} 3. Nc3 {[%clk 0:04:44]} 3... Qa5 {[%clk 0:04:53.1]}
4. g3 {[%clk 0:04:37.3]} 4... c6 {[%clk 0:04:51.4]} 5. Bg2 {[%clk 0:04:35.7]}
5... Nf6 {[%clk 0:04:46.7]} 6. e4 {[%clk 0:04:34.8]} 6... e5 {[%clk 0:04:43]} 7.
Nge2 {[%clk 0:04:33.6]} 7... Nbd7 {[%clk 0:04:39.8]} 8. O-O {[%clk 0:04:33.1]}
8... Bb4 {[%clk 0:04:38.2]} 9. f4 {[%clk 0:04:32.2]} 9... Bxc3 {[%clk
0:04:36.2]} 10. Nxc3 {[%clk 0:04:30.3]} 10... O-O {[%clk 0:04:32]} 11. fxe5
{[%clk 0:04:29.5]} 11... Qxe5 {[%clk 0:04:27.2]} 12. d4 {[%clk 0:04:27.2]} 12...
Qb5 {[%clk 0:04:16.6]} 13. Nxb5 {[%clk 0:04:25.1]} 13... cxb5 {[%clk 0:04:13.6]}
14. e5 {[%clk 0:04:24.2]} 14... Ne8 {[%clk 0:04:05.3]} 15. Bf4 {[%clk
0:04:21.7]} 15... Rb8 {[%clk 0:04:00.4]} 16. e6 {[%clk 0:04:19.9]} 16... Ndf6
{[%clk 0:03:57.9]} 17. Bxb8 {[%clk 0:04:18.7]} 17... fxe6 {[%clk 0:03:55.6]} 18.
d5 {[%clk 0:04:16.3]} 18... exd5 {[%clk 0:03:53.4]} 19. Bxd5+ {[%clk 0:04:15.3]}
19... Kh8 {[%clk 0:03:50.5]} 20. Be5 {[%clk 0:04:12.7]} 20... Bh3 {[%clk
0:03:45]} 21. Bxf6 {[%clk 0:04:10.4]} 21... Bxf1 {[%clk 0:03:41.6]} 22. Qxf1
{[%clk 0:04:08.1]} 22... Nxf6 {[%clk 0:03:39.9]} 23. Bxb7 {[%clk 0:04:05.5]}
23... h6 {[%clk 0:03:29.5]} 24. Qxb5 {[%clk 0:04:03.7]} 24... Ng4 {[%clk
0:03:17.8]} 25. Rf1 {[%clk 0:03:59]} 25... Nf6 {[%clk 0:03:10.9]} 26. Rxf6
{[%clk 0:03:57.6]} 26... gxf6 {[%clk 0:03:10]} 27. Qd7 {[%clk 0:03:55.3]} 27...
Rg8 {[%clk 0:03:01.4]} 28. Be4 {[%clk 0:03:53.8]} 28... Rg7 {[%clk 0:03:00]} 29.
Qe8+ {[%clk 0:03:53]} 29... Rg8 {[%clk 0:02:57.9]} 30. Qf7 {[%clk 0:03:50.9]}
30... Rg7 {[%clk 0:02:56.9]} 31. Qf8+ {[%clk 0:03:49.3]} 31... Rg8 {[%clk
0:02:55.9]} 32. Qxf6+ {[%clk 0:03:48.3]} 32... Rg7 {[%clk 0:02:54.9]} 33. Qxh6+
{[%clk 0:03:47.3]} 33... Kg8 {[%clk 0:02:53]} 34. Bd5+ {[%clk 0:03:43.9]} 34...
Kf8 {[%clk 0:02:52]} 35. Qf6+ {[%clk 0:03:42.9]} 35... Ke8 {[%clk 0:02:44.3]}
36. Qxg7 {[%clk 0:03:41.6]} 36... Kd8 {[%clk 0:02:42.7]} 37. Bc6 {[%clk
0:03:40.6]} 37... Kc8 {[%clk 0:02:38.9]} 38. Qb7+ {[%clk 0:03:39.5]} 38... Kd8
{[%clk 0:02:38]} 39. Qd7# {[%clk 0:03:39.2]} 1-0

[Event "Live Chess"]
[Site "Chess.com"]
[Date "2024.06.02"]
[Round "-"]
[White "TheSmoulderingMaster"]
[Black "dmitro74"]
[Result "1-0"]
[WhiteElo "1771"]
[BlackElo "1721"]
[TimeControl "300"]
[EndTime "16:46:54 PDT"]
[Termination "TheSmoulderingMaster won by resignation"]

1. e4 {[%clk 0:04:56.7]} 1... e6 {[%clk 0:04:58.9]} 2. d4 {[%clk 0:04:55.5]}
2... d5 {[%clk 0:04:58.3]} 3. Nc3 {[%clk 0:04:54.4]} 3... dxe4 {[%clk
0:04:56.7]} 4. Nxe4 {[%clk 0:04:53.5]} 4... Nd7 {[%clk 0:04:56.3]} 5. Nf3 {[%clk
0:04:51.9]} 5... Ngf6 {[%clk 0:04:55.7]} 6. Bg5 {[%clk 0:04:50.3]} 6... Be7
{[%clk 0:04:54.2]} 7. Bxf6 {[%clk 0:04:49.4]} 7... Nxf6 {[%clk 0:04:52.5]} 8.
Bd3 {[%clk 0:04:48.6]} 8... O-O {[%clk 0:04:48.2]} 9. O-O {[%clk 0:04:46.9]}
9... Nxe4 {[%clk 0:04:46.2]} 10. Bxe4 {[%clk 0:04:45.5]} 10... c5 {[%clk
0:04:45.6]} 11. c3 {[%clk 0:04:43.8]} 11... Qb6 {[%clk 0:04:39]} 12. h4 {[%clk
0:04:36.5]} 12... Rd8 {[%clk 0:04:32.5]} 13. Ng5 {[%clk 0:04:33.2]} 13... h6
{[%clk 0:04:30.2]} 14. Qh5 {[%clk 0:04:27.7]} 14... f5 {[%clk 0:04:21.3]} 15.
Qf7+ {[%clk 0:04:23.9]} 15... Kh8 {[%clk 0:04:13.8]} 16. Qxe7 {[%clk 0:04:18.7]}
16... hxg5 {[%clk 0:04:05.2]} 17. hxg5 {[%clk 0:04:14.7]} 17... Bd7 {[%clk
0:03:45]} 18. g6 {[%clk 0:04:12.7]} 18... Be8 {[%clk 0:03:31.1]} 19. Qh4+ {[%clk
0:04:10]} 19... Kg8 {[%clk 0:03:28.2]} 20. Qh7+ {[%clk 0:04:08.5]} 20... Kf8
{[%clk 0:03:27.2]} 21. Qh8+ {[%clk 0:04:07.7]} 21... Ke7 {[%clk 0:03:26.3]} 22.
Qxg7+ {[%clk 0:04:06.9]} 22... Kd6 {[%clk 0:03:25.5]} 23. Qe5+ {[%clk 0:04:04]}
23... Ke7 {[%clk 0:03:14.1]} 24. g7 {[%clk 0:04:02.5]} 24... Bf7 {[%clk
0:03:08]} 25. Bxf5 {[%clk 0:03:59]} 25... Qd6 {[%clk 0:03:01.3]} 26. Qe3 {[%clk
0:03:54.8]} 26... cxd4 {[%clk 0:02:51.7]} 27. Qg5+ {[%clk 0:03:51.7]} 27... Kd7
{[%clk 0:02:46.4]} 28. Bh7 {[%clk 0:03:45.5]} 28... d3 {[%clk 0:02:38.3]} 29.
Bxd3 {[%clk 0:03:02]} 29... Kc7 {[%clk 0:02:16.8]} 30. Rad1 {[%clk 0:02:57.1]}
30... Rd7 {[%clk 0:01:58.1]} 31. Bb5 {[%clk 0:02:53.1]} 31... Qxd1 {[%clk
0:01:48.1]} 32. Rxd1 {[%clk 0:02:52.2]} 32... Rxd1+ {[%clk 0:01:46.6]} 33. Kh2
{[%clk 0:02:51.6]} 33... Bg8 {[%clk 0:01:13.2]} 34. Qe7+ {[%clk 0:02:46.3]}
34... Kb6 {[%clk 0:01:12.1]} 35. Bc4 {[%clk 0:02:41.5]} 35... Rc8 {[%clk
0:00:57.7]} 36. Bxe6 {[%clk 0:02:39.4]} 36... Bxe6 {[%clk 0:00:52.1]} 37. Qxe6+
{[%clk 0:02:38.3]} 37... Rc6 {[%clk 0:00:51]} 38. Qe3+ {[%clk 0:02:34.6]} 38...
Kc7 {[%clk 0:00:46.4]} 39. g8=Q {[%clk 0:02:33.2]} 1-0

[Event "Live Chess"]
[Site "Chess.com"]
[Date "2024.06.02"]
[Round "-"]
[White "CheckThis4"]
[Black "Rusty_Bridges"]
[Result "1-0"]
[WhiteElo "2693"]
[BlackElo "1472"]
[TimeControl "300"]
[EndTime "16:47:02 PDT"]
[Termination "CheckThis4 won by resignation"]

1. d4 {[%clk 0:04:57.9]} 1... d5 {[%clk 0:04:57.6]} 2. Nc3 {[%clk 0:04:55.3]}
2... e6 {[%clk 0:04:56.2]} 3. e4 {[%clk 0:04:54.5]} 3... Bb4 {[%clk 0:04:52.7]}
4. e5 {[%clk 0:04:53]} 4... c5 {[%clk 0:04:47.3]} 5. a3 {[%clk 0:04:51.5]} 5...
cxd4 {[%clk 0:04:44.6]} 6. axb4 {[%clk 0:04:46]} 6... dxc3 {[%clk 0:04:43.5]} 7.
bxc3 {[%clk 0:04:44.8]} 7... Qc7 {[%clk 0:04:39.1]} 8. Nf3 {[%clk 0:04:36.3]}
8... Qxc3+ {[%clk 0:04:30.4]} 9. Bd2 {[%clk 0:04:34.7]} 9... Qc7 {[%clk
0:04:25.1]} 10. Bd3 {[%clk 0:04:33.5]} 10... Nc6 {[%clk 0:04:21.9]} 11. Qe2
{[%clk 0:04:29.8]} 11... Bd7 {[%clk 0:04:19.9]} 12. O-O {[%clk 0:04:27.5]} 12...
Nge7 {[%clk 0:04:18.2]} 13. Rfe1 {[%clk 0:04:26.2]} 13... Ng6 {[%clk 0:04:13.2]}
14. h4 {[%clk 0:04:21.4]} 14... a6 {[%clk 0:03:28.1]} 15. h5 {[%clk 0:04:17.9]}
15... Nge7 {[%clk 0:03:25.6]} 16. b5 {[%clk 0:04:15.8]} 16... Nd8 {[%clk
0:03:17.2]} 17. Bb4 {[%clk 0:04:07.8]} 17... Qb8 {[%clk 0:03:05.3]} 18. Bd6
{[%clk 0:04:01.5]} 18... Qa7 {[%clk 0:02:59.1]} 19. Reb1 {[%clk 0:03:54.5]}
19... Bxb5 {[%clk 0:02:44.1]} 20. Bxb5+ {[%clk 0:03:50.3]} 1-0

[Event "Live Chess"]
[Site "Chess.com"]
[Date "2024.06.02"]
[Round "-"]
[White "Frankie_Badacsonyi"]
[Black "Outspanner"]
[Result "1-0"]
[WhiteElo "2432"]
[BlackElo "1561"]
[TimeControl "300"]
[EndTime "16:47:04 PDT"]
[Termination "Frankie_Badacsonyi won by resignation"]

1. Nf3 {[%clk 0:04:57.5]} 1... c5 {[%clk 0:04:57.6]} 2. b3 {[%clk 0:04:56.1]}
2... d6 {[%clk 0:04:45.1]} 3. Bb2 {[%clk 0:04:54.8]} 3... e5 {[%clk 0:04:44]} 4.
e3 {[%clk 0:04:52]} 4... Nf6 {[%clk 0:04:33.2]} 5. c4 {[%clk 0:04:50.9]} 5...
Be7 {[%clk 0:04:28.5]} 6. Nc3 {[%clk 0:04:49.6]} 6... Nc6 {[%clk 0:04:26.5]} 7.
d3 {[%clk 0:04:47]} 7... Bg4 {[%clk 0:04:22.4]} 8. Be2 {[%clk 0:04:45.7]} 8...
O-O {[%clk 0:04:19.3]} 9. O-O {[%clk 0:04:44.2]} 9... Nd7 {[%clk 0:03:58.5]} 10.
h3 {[%clk 0:04:40.9]} 10... Bh5 {[%clk 0:03:54.4]} 11. Qc2 {[%clk 0:04:34]}
11... f5 {[%clk 0:03:49.5]} 12. Nxe5 {[%clk 0:04:15.4]} 12... Nb4 {[%clk
0:03:34.6]} 13. Qd2 {[%clk 0:04:04.9]} 13... Bxe2 {[%clk 0:03:31]} 14. Nxd7
{[%clk 0:04:02.8]} 14... Bxf1 {[%clk 0:03:25.1]} 15. Nxf8 {[%clk 0:03:59.3]}
15... Bxd3 {[%clk 0:03:23.7]} 16. Ne6 {[%clk 0:03:54.8]} 16... Qd7 {[%clk
0:03:17.6]} 17. Nf4 {[%clk 0:03:52.8]} 17... Be4 {[%clk 0:03:04.6]} 18. Nxe4
{[%clk 0:03:50.5]} 18... fxe4 {[%clk 0:03:03.5]} 19. a3 {[%clk 0:03:49.5]} 19...
Nc6 {[%clk 0:03:00.1]} 20. Qd5+ {[%clk 0:03:47.2]} 20... Kh8 {[%clk 0:02:55.7]}
21. Qxe4 {[%clk 0:03:44.4]} 21... Re8 {[%clk 0:02:46.6]} 22. Qd3 {[%clk
0:03:34.2]} 22... Qe6 {[%clk 0:02:31.1]} 23. Nxe6 {[%clk 0:03:31.2]} 1-0

[Event "Live Chess"]
[Site "Chess.com"]
[Date "2024.06.02"]
[Round "-"]
[White "KeithArkell"]
[Black "educatedlad"]
[Result "1-0"]
[WhiteElo "2412"]
[BlackElo "1712"]
[TimeControl "300"]
[EndTime "16:47:05 PDT"]
[Termination "KeithArkell won by resignation"]

1. d4 {[%clk 0:04:57.6]} 1... Nf6 {[%clk 0:04:54.7]} 2. Nf3 {[%clk 0:04:56.9]}
2... g6 {[%clk 0:04:53.3]} 3. c4 {[%clk 0:04:56.2]} 3... d5 {[%clk 0:04:50.4]}
4. cxd5 {[%clk 0:04:55.1]} 4... Nxd5 {[%clk 0:04:49.2]} 5. Nc3 {[%clk
0:04:54.7]} 5... Nxc3 {[%clk 0:04:47.6]} 6. bxc3 {[%clk 0:04:54.6]} 6... Bg7
{[%clk 0:04:46.3]} 7. g3 {[%clk 0:04:54.5]} 7... O-O {[%clk 0:04:45]} 8. Bg2
{[%clk 0:04:53.9]} 8... c5 {[%clk 0:04:43.9]} 9. O-O {[%clk 0:04:52.9]} 9... Nc6
{[%clk 0:04:35.2]} 10. e3 {[%clk 0:04:51.4]} 10... cxd4 {[%clk 0:04:33.7]} 11.
cxd4 {[%clk 0:04:50.7]} 11... Bg4 {[%clk 0:04:30.7]} 12. h3 {[%clk 0:04:50.1]}
12... Bf5 {[%clk 0:04:28.4]} 13. a4 {[%clk 0:04:40]} 13... Qc8 {[%clk
0:04:25.5]} 14. Kh2 {[%clk 0:04:38.6]} 14... Rd8 {[%clk 0:04:21.4]} 15. Qb3
{[%clk 0:04:33]} 15... Be6 {[%clk 0:04:16.8]} 16. Qb5 {[%clk 0:04:28.4]} 16...
a6 {[%clk 0:04:14.5]} 17. Qb6 {[%clk 0:04:27.6]} 17... Bd5 {[%clk 0:04:08.8]}
18. Ba3 {[%clk 0:04:24.6]} 18... e6 {[%clk 0:03:49.1]} 19. Rab1 {[%clk
0:04:22.8]} 19... Be4 {[%clk 0:03:46.9]} 20. Rb2 {[%clk 0:04:19.7]} 20... Rb8
{[%clk 0:03:39.2]} 21. Rc1 {[%clk 0:04:18.1]} 21... Qd7 {[%clk 0:03:36.1]} 22.
Ne5 {[%clk 0:04:08.9]} 22... Bxe5 {[%clk 0:03:20.9]} 23. Bxe4 {[%clk 0:04:07.7]}
23... Bc7 {[%clk 0:03:14.3]} 24. Bxc6 {[%clk 0:04:01.5]} 24... bxc6 {[%clk
0:03:08.7]} 25. Qxc6 {[%clk 0:04:00.6]} 25... Rxb2 {[%clk 0:03:02.8]} 26. Bxb2
{[%clk 0:03:59.8]} 26... Qxc6 {[%clk 0:02:53.3]} 27. Rxc6 {[%clk 0:03:58.6]}
27... Rb8 {[%clk 0:02:49.7]} 28. Bc3 {[%clk 0:03:56.9]} 28... Bb6 {[%clk
0:02:43.9]} 29. a5 {[%clk 0:03:55.2]} 29... Bd8 {[%clk 0:02:41]} 30. Rxa6 {[%clk
0:03:54.2]} 30... Rc8 {[%clk 0:02:39.9]} 31. Bb4 {[%clk 0:03:52.7]} 31... Rc2
{[%clk 0:02:34.2]} 32. Ra8 {[%clk 0:03:51]} 1-0

[Event "Live Chess"]
[Site "Chess.com"]
[Date "2024.06.02"]
[Round "-"]
[White "raclement"]
[Black "vincents82"]
[Result "0-1"]
[WhiteElo "1722"]
[BlackElo "2039"]
[TimeControl "300"]
[EndTime "16:47:20 PDT"]
[Termination "vincents82 won on time"]

1. Nf3 {[%clk 0:04:53.9]} 1... d5 {[%clk 0:04:59.4]} 2. g3 {[%clk 0:04:48.6]}
2... Nf6 {[%clk 0:04:58.3]} 3. Bg2 {[%clk 0:04:43.2]} 3... Bf5 {[%clk
0:04:55.7]} 4. O-O {[%clk 0:04:39.3]} 4... e6 {[%clk 0:04:54.9]} 5. d3 {[%clk
0:04:28.9]} 5... h6 {[%clk 0:04:53.5]} 6. Nbd2 {[%clk 0:04:27]} 6... Be7 {[%clk
0:04:51.8]} 7. Re1 {[%clk 0:04:25.6]} 7... Bh7 {[%clk 0:04:51]} 8. b3 {[%clk
0:04:16.3]} 8... O-O {[%clk 0:04:49.2]} 9. Bb2 {[%clk 0:04:15]} 9... c5 {[%clk
0:04:48]} 10. h4 {[%clk 0:04:05.1]} 10... Nc6 {[%clk 0:04:44.7]} 11. a3 {[%clk
0:04:00.8]} 11... b5 {[%clk 0:04:42.7]} 12. c4 {[%clk 0:03:52]} 12... bxc4
{[%clk 0:04:38]} 13. dxc4 {[%clk 0:03:49.7]} 13... d4 {[%clk 0:04:36.2]} 14. Nh2
{[%clk 0:03:39.8]} 14... Rc8 {[%clk 0:04:32.3]} 15. Ndf1 {[%clk 0:03:03.6]}
15... Qb6 {[%clk 0:04:24.5]} 16. Bc1 {[%clk 0:02:52.7]} 16... Rfd8 {[%clk
0:04:21.9]} 17. Bd2 {[%clk 0:02:48.9]} 17... Ne4 {[%clk 0:04:12.2]} 18. b4
{[%clk 0:02:43.7]} 18... cxb4 {[%clk 0:03:57.3]} 19. axb4 {[%clk 0:02:40.1]}
19... Nc3 {[%clk 0:03:51.8]} 20. Bxc3 {[%clk 0:02:32.6]} 20... dxc3 {[%clk
0:03:51.4]} 21. Qa4 {[%clk 0:02:23.7]} 21... Bxb4 {[%clk 0:03:41.8]} 22. Rec1
{[%clk 0:01:58.7]} 22... c2 {[%clk 0:03:35.4]} 23. Ne3 {[%clk 0:01:54.9]} 23...
Nd4 {[%clk 0:03:29.3]} 24. Kf1 {[%clk 0:01:42.4]} 24... a5 {[%clk 0:03:23.5]}
25. Nxc2 {[%clk 0:01:32.8]} 25... Bd2 {[%clk 0:03:12.9]} 26. Rcb1 {[%clk
0:01:26.3]} 26... Qc5 {[%clk 0:02:45.8]} 27. e4 {[%clk 0:00:59.5]} 27... Nxc2
{[%clk 0:02:33.6]} 28. Qxc2 {[%clk 0:00:56.7]} 28... Qxc4+ {[%clk 0:02:30.9]}
29. Qxc4 {[%clk 0:00:54.9]} 29... Rxc4 {[%clk 0:02:29.9]} 30. Rd1 {[%clk
0:00:35.8]} 30... Rcd4 {[%clk 0:02:28.4]} 31. Ke2 {[%clk 0:00:27.1]} 31... Bxe4
{[%clk 0:02:23.5]} 32. Nf3 {[%clk 0:00:17.5]} 32... Bxf3+ {[%clk 0:02:16.1]} 33.
Bxf3 {[%clk 0:00:16.1]} 33... Bb4 {[%clk 0:02:14.7]} 34. Rxd4 {[%clk 0:00:13.5]}
34... Rxd4 {[%clk 0:02:14.4]} 35. Rd1 {[%clk 0:00:11.4]} 35... Rxd1 {[%clk
0:02:09.5]} 36. Kxd1 {[%clk 0:00:09.4]} 36... a4 {[%clk 0:02:08.1]} 37. Kc2
{[%clk 0:00:00.1]} 37... Bc5 {[%clk 0:02:05.6]} 0-1

[Event "Live Chess"]
[Site "Chess.com"]
[Date "2024.06.02"]
[Round "-"]
[White "DoctorMantisTobogganMD"]
[Black "ShanthamGrarks"]
[Result "1-0"]
[WhiteElo "2178"]
[BlackElo "1865"]
[TimeControl "300"]
[EndTime "16:47:34 PDT"]
[Termination "DoctorMantisTobogganMD won by resignation"]

1. e4 {[%clk 0:04:58.9]} 1... e6 {[%clk 0:04:53.2]} 2. Nf3 {[%clk 0:04:57.6]}
2... d5 {[%clk 0:04:52.2]} 3. e5 {[%clk 0:04:57.1]} 3... c5 {[%clk 0:04:50.3]}
4. b4 {[%clk 0:04:56.5]} 4... cxb4 {[%clk 0:04:47.6]} 5. d4 {[%clk 0:04:55.4]}
5... Nc6 {[%clk 0:04:44.4]} 6. a3 {[%clk 0:04:54.5]} 6... b3 {[%clk 0:04:42.9]}
7. cxb3 {[%clk 0:04:52.8]} 7... Nge7 {[%clk 0:04:41.7]} 8. Bd3 {[%clk
0:04:51.6]} 8... Ng6 {[%clk 0:04:40.4]} 9. h4 {[%clk 0:04:50.4]} 9... Be7 {[%clk
0:04:34.4]} 10. h5 {[%clk 0:04:48.7]} 10... Nh4 {[%clk 0:04:30.7]} 11. Nxh4
{[%clk 0:04:45.7]} 11... Bxh4 {[%clk 0:04:29.4]} 12. Qg4 {[%clk 0:04:45]} 12...
Be7 {[%clk 0:04:17.2]} 13. Qxg7 {[%clk 0:04:43.1]} 13... Rf8 {[%clk 0:04:16.8]}
14. Qxh7 {[%clk 0:04:28.8]} 14... Nxd4 {[%clk 0:04:13.9]} 15. Bh6 {[%clk
0:04:23.9]} 15... Qa5+ {[%clk 0:04:06.8]} 16. Kf1 {[%clk 0:04:19.1]} 16... Bd7
{[%clk 0:03:57.2]} 17. Bxf8 {[%clk 0:04:11.1]} 17... Bxf8 {[%clk 0:03:55.6]} 18.
Qg8 {[%clk 0:03:51.2]} 18... Bb5 {[%clk 0:03:49.9]} 19. Bxb5+ {[%clk 0:03:44.6]}
19... Qxb5+ {[%clk 0:03:48.3]} 20. Kg1 {[%clk 0:03:42.8]} 20... Ne2+ {[%clk
0:03:45.6]} 21. Kh2 {[%clk 0:03:41.1]} 21... d4 {[%clk 0:03:33.5]} 22. Qg4
{[%clk 0:03:15.3]} 22... Qxe5+ {[%clk 0:03:28.7]} 23. g3 {[%clk 0:03:14.2]}
23... Rc8 {[%clk 0:03:06]} 24. Ra2 {[%clk 0:02:59.9]} 24... Nc3 {[%clk
0:03:02.9]} 25. Nxc3 {[%clk 0:02:57.5]} 25... Rxc3 {[%clk 0:02:59.9]} 26. Re2
{[%clk 0:02:44.4]} 26... Qd5 {[%clk 0:02:54.7]} 27. Rhe1 {[%clk 0:02:31.6]}
27... Rc6 {[%clk 0:02:28.7]} 28. Re5 {[%clk 0:02:27.5]} 28... Qd6 {[%clk
0:02:08.6]} 29. b4 {[%clk 0:02:25.3]} 29... d3 {[%clk 0:02:07.2]} 30. R5e3
{[%clk 0:02:13.3]} 30... d2 {[%clk 0:02:05.2]} 31. Rd1 {[%clk 0:02:11.1]} 31...
Rc1 {[%clk 0:02:01.2]} 32. Qe2 {[%clk 0:01:55.5]} 32... Bh6 {[%clk 0:01:53.9]}
33. Rxd2 {[%clk 0:01:46.9]} 33... Qc6 {[%clk 0:01:48.9]} 34. f3 {[%clk
0:01:19.6]} 34... Bxe3 {[%clk 0:01:38.2]} 35. Qxe3 {[%clk 0:01:19.5]} 35... Qb5
{[%clk 0:01:31.8]} 36. g4 {[%clk 0:01:09]} 36... Qf1 {[%clk 0:01:28.9]} 37. Kg3
{[%clk 0:01:06.5]} 37... Qh1 {[%clk 0:01:25.1]} 38. Rg2 {[%clk 0:00:49.4]} 38...
Qd1 {[%clk 0:01:18.3]} 39. h6 {[%clk 0:00:43.8]} 39... Qd6+ {[%clk 0:01:12.9]}
40. Qf4 {[%clk 0:00:42.3]} 40... e5 {[%clk 0:01:10.5]} 41. Qxc1 {[%clk
0:00:40.7]} 41... e4+ {[%clk 0:01:08.9]} 42. Qf4 {[%clk 0:00:40]} 42... Qe6
{[%clk 0:01:07.4]} 43. Qxe4 {[%clk 0:00:38.9]} 43... Qxe4 {[%clk 0:01:05.6]} 44.
fxe4 {[%clk 0:00:38.8]} 44... Kf8 {[%clk 0:01:04.8]} 45. g5 {[%clk 0:00:37.7]}
45... Kg8 {[%clk 0:01:04.2]} 46. Kg4 {[%clk 0:00:37.1]} 46... Kh7 {[%clk
0:01:03.7]} 47. Kh5 {[%clk 0:00:37]} 47... b5 {[%clk 0:01:01.8]} 48. Rf2 {[%clk
0:00:36.9]} 1-0

[Event "Live Chess"]
[Site "Chess.com"]
[Date "2024.06.02"]
[Round "-"]
[White "MagnersCarlsberg2870"]
[Black "Queensandpawns"]
[Result "0-1"]
[WhiteElo "1781"]
[BlackElo "2307"]
[TimeControl "300"]
[EndTime "16:47:42 PDT"]
[Termination "Queensandpawns won by resignation"]

1. d4 {[%clk 0:04:56.4]} 1... e5 {[%clk 0:04:58.9]} 2. e4 {[%clk 0:04:51.9]}
2... exd4 {[%clk 0:04:57.7]} 3. Qxd4 {[%clk 0:04:48.6]} 3... Nc6 {[%clk
0:04:57.6]} 4. Qd1 {[%clk 0:04:47.2]} 4... Bc5 {[%clk 0:04:57.1]} 5. Bc4 {[%clk
0:04:45.3]} 5... Qh4 {[%clk 0:04:56.3]} 6. Qf3 {[%clk 0:04:41.8]} 6... Ne5
{[%clk 0:04:55.6]} 7. Qb3 {[%clk 0:04:26.8]} 7... Qxf2+ {[%clk 0:04:52.8]} 8.
Kd1 {[%clk 0:04:25.5]} 8... Qxg2 {[%clk 0:04:51.8]} 9. Nd2 {[%clk 0:04:10.5]}
9... Qxh1 {[%clk 0:04:47.4]} 10. Nf3 {[%clk 0:04:07.9]} 10... Nxc4 {[%clk
0:04:39.7]} 11. Qxc4 {[%clk 0:04:06.5]} 11... Bxg1 {[%clk 0:04:39.1]} 12. Ne5
{[%clk 0:03:58.9]} 12... Bd4+ {[%clk 0:04:36.1]} 0-1

[Event "Live Chess"]
[Site "Chess.com"]
[Date "2024.06.02"]
[Round "-"]
[White "grillage"]
[Black "cymbalshift"]
[Result "1-0"]
[WhiteElo "1851"]
[BlackElo "1720"]
[TimeControl "300"]
[EndTime "16:48:00 PDT"]
[Termination "grillage won by resignation"]

1. d4 {[%clk 0:04:57.5]} 1... Nf6 {[%clk 0:04:58.4]} 2. Nf3 {[%clk 0:04:55.9]}
2... e6 {[%clk 0:04:57.1]} 3. c4 {[%clk 0:04:52.9]} 3... c5 {[%clk 0:04:56.1]}
4. g3 {[%clk 0:04:46.4]} 4... b6 {[%clk 0:04:49.5]} 5. Bg2 {[%clk 0:04:45.2]}
5... Bb7 {[%clk 0:04:49]} 6. O-O {[%clk 0:04:44.3]} 6... Qc7 {[%clk 0:04:42.3]}
7. Bf4 {[%clk 0:04:39.5]} 7... d6 {[%clk 0:04:40.7]} 8. dxc5 {[%clk 0:04:35.1]}
8... bxc5 {[%clk 0:04:39.2]} 9. Nc3 {[%clk 0:04:32.4]} 9... a6 {[%clk
0:04:37.6]} 10. Qd3 {[%clk 0:04:10.7]} 10... Be7 {[%clk 0:04:25.4]} 11. Rfd1
{[%clk 0:04:07.8]} 11... O-O {[%clk 0:04:24]} 12. Bxd6 {[%clk 0:04:02.7]} 12...
Bxd6 {[%clk 0:04:18.8]} 13. Qxd6 {[%clk 0:04:01.4]} 13... Qxd6 {[%clk
0:04:17.9]} 14. Rxd6 {[%clk 0:04:00.5]} 14... Nbd7 {[%clk 0:04:13.6]} 15. Rad1
{[%clk 0:03:54.7]} 15... Bc8 {[%clk 0:03:56.1]} 16. b3 {[%clk 0:03:50.9]} 16...
Ra7 {[%clk 0:03:42.6]} 17. Na4 {[%clk 0:03:37.8]} 17... Ne8 {[%clk 0:03:34.6]}
18. R6d2 {[%clk 0:03:28.1]} 18... e5 {[%clk 0:03:14.2]} 19. Ng5 {[%clk
0:03:21.9]} 19... Ndf6 {[%clk 0:02:51.9]} 20. Nxc5 {[%clk 0:03:16.2]} 20... h6
{[%clk 0:02:50.2]} 21. Nge4 {[%clk 0:03:14.4]} 21... Nxe4 {[%clk 0:02:49.7]} 22.
Nxe4 {[%clk 0:03:13.1]} 22... f5 {[%clk 0:02:49.1]} 23. Nd6 {[%clk 0:03:11.8]}
23... Nf6 {[%clk 0:02:29.5]} 24. Nxc8 {[%clk 0:03:06]} 24... Rxc8 {[%clk
0:02:28]} 25. Rd8+ {[%clk 0:02:48.3]} 25... Rxd8 {[%clk 0:02:26.8]} 26. Rxd8+
{[%clk 0:02:47.5]} 26... Kf7 {[%clk 0:02:25.3]} 27. h3 {[%clk 0:02:38.2]} 27...
Ke7 {[%clk 0:02:22.7]} 28. Rd1 {[%clk 0:02:35.8]} 28... e4 {[%clk 0:02:14.3]}
29. e3 {[%clk 0:02:29.8]} 29... g5 {[%clk 0:02:02.5]} 30. Bf1 {[%clk 0:02:25.9]}
30... Nd7 {[%clk 0:01:58.3]} 31. Rd5 {[%clk 0:02:22.5]} 31... Ke6 {[%clk
0:01:54.6]} 32. b4 {[%clk 0:02:12.8]} 32... Ne5 {[%clk 0:01:44.3]} 33. Ra5
{[%clk 0:02:06]} 33... Nf3+ {[%clk 0:01:36.2]} 34. Kg2 {[%clk 0:02:03.8]} 34...
Ne1+ {[%clk 0:01:33.1]} 35. Kh1 {[%clk 0:01:56.7]} 35... h5 {[%clk 0:01:05.3]}
36. b5 {[%clk 0:01:53.6]} 36... h4 {[%clk 0:00:56.3]} 37. Rxa6+ {[%clk
0:01:51.6]} 37... Rxa6 {[%clk 0:00:51.1]} 38. bxa6 {[%clk 0:01:50.5]} 38... hxg3
{[%clk 0:00:27.5]} 39. fxg3 {[%clk 0:01:48.9]} 39... Nc2 {[%clk 0:00:25.2]} 40.
a7 {[%clk 0:01:46.3]} 40... Nb4 {[%clk 0:00:23]} 41. a8=Q {[%clk 0:01:44.2]} 1-0